fUSD/lending_fUSD_20250514
["ID","MTS","AMOUNT","RATE_DAILY","PERIOD"]
[360984645,1747181442427,-164.51938512,0.00010999,2]
[360984646,1747181442436,-151.57300527,0.00010999,2]
[360984647,1747181442445,-400.0,0.00010999,2]
[360984648,1747181442455,-400.0,0.00010999,2]
[360984649,1747181442465,-400.0,0.00010999,2]
[360984650,1747181442474,-544.88218439,0.00010999,2]
[360984651,1747181442484,-364.48105919,0.00010999,2]
[360984652,1747181442493,-400.0,0.00010999,2]
[360984653,1747181442504,-400.0,0.00010999,2]
[360984654,1747181442514,-411.02614868,0.00010999,2]
[360984655,1747181442524,-12480.74,0.00010999,2]
[360984656,1747181442533,-6262.82,0.00010999,2]
[360984657,1747181442543,-734.86,0.00010999,2]
[360984658,1747181442553,-440.69,0.00010999,2]
[360984659,1747181442563,-2260.8,0.00010999,2]
[360984660,1747181442572,-504.57,0.00010999,2]
[360984661,1747181442582,-300.0,0.00010999,2]
[360984662,1747181442592,-300.0,0.00010999,2]
[360984663,1747181442601,-356.47698813,0.00010999,2]
[360984664,1747181442771,-300.0,0.00010999,2]
[360984665,1747181442781,-533.0,0.00010999,2]
[360984666,1747181442791,-250.18007474,0.00011,2]
[360984667,1747181442801,-1052936.49998624,0.00011,2]
[360984668,1747181442811,-525895.11637909,0.00011,2]
[360984671,1747181445204,-836.0,0.0001091,2]
[360984672,1747181445213,-493.38,0.00010958,2]
[360984673,1747181445225,-457.57,0.00010958,2]
[360984674,1747181445234,-703.73,0.00010958,2]
[360984675,1747181445244,-400.0,0.00010958,2]
[360984676,1747181445253,-597.77,0.00010958,2]
[360984677,1747181445263,-70.596,0.00010958,2]
[360984678,1747181445347,-329.404,0.00010958,2]
[360984679,1747181445357,-400.0,0.00010958,2]
[360984680,1747181445366,-10531.28069993,0.00011,2]
[360984681,1747181445401,-58131.58604024,0.00011,2]
[360984685,1747181446150,-5930.31268022,0.00011,2]
[360984686,1747181446356,-9520.0,0.00011,2]
[360984687,1747181446369,-271.06427198,0.00011,2]
[360984688,1747181446381,-356.11239476,0.00011,2]
[360984689,1747181446393,-1126741.88188027,0.00011,2]
[360984690,1747181446404,-5775.81040249,0.00011,2]
[360984691,1747181446414,-2602204.28897571,0.00011,2]
[360984699,1747181446969,-453.0,0.0001091,2]
[360984700,1747181447241,-426.0,0.0001091,2]
[360984701,1747181447251,-178.0,0.00011,2]
[360984702,1747181611540,1233.4,8.219e-05,2]
[360984703,1747181799442,150.0,0.00013,5]
[360984704,1747182337198,4706.77693893,9e-05,2]
[360984705,1747182355368,3300.10725657,6.94e-05,2]
[360984706,1747182355390,1668.19902864,6.94e-05,2]
[360984707,1747182363001,8331.80097136,8e-05,2]
[360984708,1747182363024,2168.04577847,8e-05,2]
[360984723,1747182443793,150.0,9.94e-05,7]
[360984725,1747182502058,346.0,0.0002,30]
[360984755,1747182632000,-527.13,9.935e-05,2]
[360984756,1747182632009,-47.31254472,9.935e-05,2]
[360984757,1747182632020,-621.53224074,9.935e-05,2]
[360984758,1747182632055,-331.15521454,9.935e-05,2]
[360984759,1747182632064,-130.84678846,9.942e-05,2]
[360984760,1747182632120,-69.15321154,9.942e-05,2]
[360984761,1747182632130,-250.0,9.949e-05,2]
[360984762,1747182632139,-133.79689878,9.96e-05,2]
[360984763,1747182632224,-66.20310122,9.96e-05,2]
[360984764,1747182632234,-200.0,9.998e-05,2]
[360984765,1747182632243,-880.77911566,0.0001,2]
[360984766,1747182632253,-246.89,0.00010326,2]
[360984767,1747182632262,-1233.4,0.00010472,2]
[360984768,1747182632272,-526.40799017,0.00010761,2]
[360984769,1747182632281,-343.3286,0.000108,2]
[360984770,1747182632290,-184.20370094,0.00010845,2]
[360984774,1747182638095,-23.19629906,0.00010845,2]
[360984775,1747182638104,-170.61,0.00010848,2]
[360984776,1747182638113,-387.96720987,0.0001085,2]
[360984777,1747182638124,-658.81543012,0.0001085,2]
[360984778,1747182638135,-153.21736001,0.0001085,2]
[360984779,1747182638145,-220.13483751,0.00010851,2]
[360984780,1747182638208,-779.86516249,0.00010851,2]
[360984782,1747182638218,-150.0,0.00010851,2]
[360984784,1747182638228,-1066.44982108,0.00010852,2]
[360984791,1747182640145,-312.54093169,0.00010852,2]
[360984792,1747182640211,-976.45924723,0.00010852,2]
[360984793,1747182640221,-150.99,0.00010852,2]
[360984794,1747182640232,-952.62875277,0.00010852,2]
[360984795,1747182640245,-132.08124723,0.00010852,2]
[360984796,1747182640254,-134041.47,0.00010852,2]
[360984797,1747182640264,-151.59603848,0.00010858,2]
[360984798,1747182640273,-1184.3814,0.00010858,2]
[360984799,1747182640283,-3607.9519,0.00010858,2]
[360984800,1747182640292,-1485.4875,0.00010858,2]
[360984801,1747182640302,-200622.9987,0.00010858,2]
[360984802,1747182640311,-818.01165508,0.00010861,2]
[360984803,1747182640320,-681.0975,0.000109,2]
[360984804,1747182640330,-187.20441948,0.000109,2]
[360984805,1747182640339,-191.33582661,0.000109,2]
[360984806,1747182640352,-158.52414588,0.00010918,2]
[360984807,1747182640361,-200.0,0.00010929,2]
[360984808,1747182640370,-200.0,0.00010929,2]
[360984809,1747182640380,-668.65185757,0.00010951,2]
[360984810,1747182640390,-287.61899177,0.00010951,2]
[360984811,1747182640399,-151.0,0.00010951,2]
[360984812,1747182640409,-596.63,0.00010958,2]
[360984813,1747182640418,-400.0,0.00010958,2]
[360984814,1747182640428,-400.0,0.00010958,2]
[360984815,1747182640438,-491.5,0.00010958,2]
[360984816,1747182640448,-563.01,0.00010958,2]
[360984817,1747182640457,-400.0,0.00010958,2]
[360984818,1747182640466,-400.0,0.00010958,2]
[360984819,1747182640475,-400.0,0.00010958,2]
[360984820,1747182640486,-400.0,0.00010958,2]
[360984821,1747182640495,-292.00779158,0.00010958,2]
[360984822,1747182640504,-1849.867383,0.00010958,2]
[360984823,1747182640513,-400.0,0.00010958,2]
[360984824,1747182640523,-400.0,0.00010958,2]
[360984826,1747182640532,-400.0,0.00010958,2]
[360984828,1747182640541,-281.43,0.00010958,2]
[360984830,1747182640550,-13932.088329,0.00010958,2]
[360984832,1747182640559,-691.205913,0.00010958,2]
[360984834,1747182640568,-635.23,0.00010958,2]
[360984836,1747182640577,-400.0,0.00010958,2]
[360984838,1747182640586,-170.86108036,0.00010958,2]
[360984840,1747182640595,-164.03,0.00010958,2]
[360984842,1747182640604,-400.0,0.00010958,2]
[360984844,1747182640613,-534.25,0.00010958,2]
[360984846,1747182640621,-400.0,0.00010958,2]
[360984848,1747182640630,-400.0,0.00010958,2]
[360984850,1747182640640,-400.0,0.00010958,2]
[360984852,1747182640649,-400.0,0.00010958,2]
[360984854,1747182640658,-400.0,0.00010958,2]
[360984856,1747182640666,-891.83,0.00010958,2]
[360984857,1747182640676,-289.94,0.00010958,2]
[360984859,1747182640685,-400.0,0.00010958,2]
[360984860,1747182640694,-400.0,0.00010958,2]
[360984862,1747182640703,-400.0,0.00010958,2]
[360984864,1747182640712,-400.0,0.00010958,2]
[360984866,1747182640721,-400.0,0.00010958,2]
[360984868,1747182640730,-400.0,0.00010958,2]
[360984869,1747182640739,-407.02,0.00010958,2]
[360984871,1747182640748,-615.8,0.00010958,2]
[360984873,1747182640758,-400.0,0.00010958,2]
[360984875,1747182640767,-172.74,0.00010958,2]
[360984877,1747182640776,-400.0,0.00010958,2]
[360984879,1747182640785,-948.17,0.00010958,2]
[360984881,1747182640795,-400.0,0.00010958,2]
[360984883,1747182640804,-400.0,0.00010958,2]
[360984885,1747182640813,-638.73,0.00010958,2]
[360984887,1747182640822,-400.0,0.00010958,2]
[360984889,1747182640831,-480.27,0.00010958,2]
[360984891,1747182640840,-400.0,0.00010958,2]
[360984893,1747182640849,-539.29,0.00010958,2]
[360984895,1747182640858,-286.95069397,0.00010958,2]
[360984897,1747182640868,-454.45,0.00010958,2]
[360984899,1747182640876,-400.0,0.00010958,2]
[360984901,1747182640886,-546.48,0.00010958,2]
[360984903,1747182640895,-490.88,0.00010958,2]
[360984905,1747182640904,-400.0,0.00010958,2]
[360984907,1747182640913,-904.39,0.00010958,2]
[360984909,1747182640922,-400.0,0.00010958,2]
[360984911,1747182640931,-400.0,0.00010958,2]
[360984912,1747182640941,-400.0,0.00010958,2]
[360984914,1747182640950,-400.0,0.00010958,2]
[360984916,1747182640959,-400.0,0.00010958,2]
[360984918,1747182640968,-919.3,0.00010958,2]
[360984920,1747182640977,-400.0,0.00010958,2]
[360984922,1747182640987,-404.31,0.00010958,2]
[360984924,1747182640996,-517.83,0.00010958,2]
[360984926,1747182641006,-519.17,0.00010958,2]
[360984928,1747182641015,-400.0,0.00010958,2]
[360984930,1747182641024,-604.82,0.00010958,2]
[360984932,1747182641033,-418.21,0.00010958,2]
[360984934,1747182641042,-400.0,0.00010958,2]
[360984936,1747182641051,-412.58,0.00010958,2]
[360984938,1747182641060,-400.0,0.00010958,2]
[360984940,1747182641069,-430.97,0.00010958,2]
[360984942,1747182641078,-400.0,0.00010958,2]
[360984944,1747182641088,-400.0,0.00010958,2]
[360984946,1747182641097,-400.0,0.00010958,2]
[360984948,1747182641106,-400.0,0.00010958,2]
[360984950,1747182641114,-839.32,0.00010958,2]
[360984952,1747182641124,-400.0,0.00010958,2]
[360984954,1747182641133,-400.0,0.00010958,2]
[360984956,1747182641142,-476.13,0.00010958,2]
[360984958,1747182641152,-167.34971298,0.00010958,2]
[360984960,1747182641161,-786.15,0.00010958,2]
[360984962,1747182641170,-1229.56,0.00010958,2]
[360984964,1747182641180,-862.19,0.00010958,2]
[360984984,1747182641387,-400.0,0.00010958,2]
[360984986,1747182641399,-472.8,0.00010958,2]
[360984988,1747182641409,-400.0,0.00010958,2]
[360984990,1747182641418,-400.0,0.00010958,2]
[360984992,1747182641429,-676.52,0.00010958,2]
[360984993,1747182641438,-400.0,0.00010958,2]
[360984994,1747182641448,-400.0,0.00010958,2]
[360984995,1747182641457,-1693.82,0.00010958,2]
[360984996,1747182641466,-400.0,0.00010958,2]
[360984997,1747182641476,-1348.55,0.00010958,2]
[360984998,1747182641487,-963.8,0.00010958,2]
[360984999,1747182641496,-435.91,0.00010958,2]
[360985000,1747182641506,-400.0,0.00010958,2]
[360985001,1747182641515,-692.26,0.00010958,2]
[360985002,1747182641524,-607.21,0.00010958,2]
[360985003,1747182641534,-400.0,0.00010958,2]
[360985004,1747182641544,-400.78,0.00010958,2]
[360985005,1747182641553,-688.28,0.00010958,2]
[360985006,1747182641563,-400.0,0.00010958,2]
[360985007,1747182641572,-400.0,0.00010958,2]
[360985008,1747182641581,-621.37,0.00010958,2]
[360985009,1747182641590,-415.57,0.00010958,2]
[360985010,1747182641600,-400.0,0.00010958,2]
[360985011,1747182641609,-400.0,0.00010958,2]
[360985012,1747182641618,-400.0,0.00010958,2]
[360985013,1747182641627,-400.0,0.00010958,2]
[360985014,1747182641636,-1444.28,0.00010958,2]
[360985015,1747182641645,-400.0,0.00010958,2]
[360985016,1747182641654,-618.5,0.00010958,2]
[360985017,1747182641663,-744.47,0.00010958,2]
[360985018,1747182641673,-400.0,0.00010958,2]
[360985019,1747182641682,-617.01,0.00010958,2]
[360985020,1747182641691,-1399.06,0.00010958,2]
[360985021,1747182641701,-470.61,0.00010958,2]
[360985022,1747182641710,-400.0,0.00010958,2]
[360985023,1747182641719,-400.0,0.00010958,2]
[360985024,1747182641728,-400.0,0.00010958,2]
[360985025,1747182641737,-400.7945236,0.00010958,2]
[360985026,1747182641746,-1021.61,0.00010958,2]
[360985027,1747182641755,-400.0,0.00010958,2]
[360985028,1747182641764,-400.0,0.00010958,2]
[360985029,1747182641773,-400.0,0.00010958,2]
[360985030,1747182641783,-444.99,0.00010958,2]
[360985031,1747182641792,-400.0,0.00010958,2]
[360985032,1747182641801,-547.6356023,0.00010958,2]
[360985033,1747182641810,-1014.98,0.00010958,2]
[360985034,1747182641819,-400.0,0.00010958,2]
[360985035,1747182641828,-285.71060262,0.00010958,2]
[360985036,1747182641837,-714.27,0.00010958,2]
[360985037,1747182641846,-1032.05,0.00010958,2]
[360985038,1747182641855,-400.0,0.00010958,2]
[360985039,1747182641864,-1046.77,0.00010958,2]
[360985040,1747182641873,-400.0,0.00010958,2]
[360985041,1747182641882,-400.0,0.00010958,2]
[360985042,1747182641892,-459.63,0.00010958,2]
[360985043,1747182641900,-863.3,0.00010958,2]
[360985044,1747182641909,-492.83,0.00010958,2]
[360985045,1747182641919,-400.0,0.00010958,2]
[360985046,1747182641928,-1530.7,0.00010958,2]
[360985047,1747182641937,-1037.52,0.00010958,2]
[360985048,1747182641946,-226.50959729,0.00010958,2]
[360985049,1747182641955,-1472.24,0.00010958,2]
[360985050,1747182641964,-977.54,0.00010958,2]
[360985051,1747182641973,-400.0,0.00010958,2]
[360985052,1747182641982,-400.0,0.00010958,2]
[360985053,1747182641991,-400.0,0.00010958,2]
[360985054,1747182642000,-400.0,0.00010958,2]
[360985055,1747182642009,-1140.27,0.00010958,2]
[360985056,1747182642018,-400.0,0.00010958,2]
[360985057,1747182642027,-463.95,0.00010958,2]
[360985058,1747182642036,-400.0,0.00010958,2]
[360985059,1747182642045,-400.0,0.00010958,2]
[360985060,1747182642054,-400.0,0.00010958,2]
[360985061,1747182642063,-400.0,0.00010958,2]
[360985062,1747182642072,-400.0,0.00010958,2]
[360985063,1747182642081,-400.0,0.00010958,2]
[360985064,1747182642091,-400.0,0.00010958,2]
[360985065,1747182642100,-727.18,0.00010958,2]
[360985066,1747182642109,-400.0,0.00010958,2]
[360985067,1747182642118,-400.0,0.00010958,2]
[360985068,1747182642127,-1971.48,0.00010958,2]
[360985069,1747182642136,-400.0,0.00010958,2]
[360985070,1747182642145,-1132.56,0.00010958,2]
[360985071,1747182642154,-400.0,0.00010958,2]
[360985072,1747182642163,-350.29384776,0.00010958,2]
[360985073,1747182642173,-1311.26,0.00010958,2]
[360985074,1747182642182,-400.0,0.00010958,2]
[360985075,1747182642192,-1210.34,0.00010958,2]
[360985076,1747182642202,-400.0,0.00010958,2]
[360985077,1747182642212,-507.09,0.00010958,2]
[360985078,1747182642222,-895.62,0.00010958,2]
[360985079,1747182642232,-566.24,0.00010958,2]
[360985080,1747182642242,-726.52,0.00010958,2]
[360985081,1747182642252,-444.94,0.00010958,2]
[360985082,1747182642261,-281.36137435,0.00010958,2]
[360985083,1747182642270,-400.0,0.00010958,2]
[360985084,1747182642280,-500.0,0.00010958,2]
[360985085,1747182642290,-400.0,0.00010958,2]
[360985086,1747182642301,-400.0,0.00010958,2]
[360985087,1747182642311,-400.0,0.00010958,2]
[360985088,1747182642321,-400.0,0.00010958,2]
[360985089,1747182642330,-1535.03,0.00010958,2]
[360985090,1747182642340,-2105.95,0.00010958,2]
[360985091,1747182642354,-400.0,0.00010958,2]
[360985092,1747182642363,-536.82,0.00010958,2]
[360985093,1747182642373,-4707.7,0.00010958,2]
[360985094,1747182642382,-259.83259264,0.00010958,2]
[360985095,1747182642392,-400.0,0.00010958,2]
[360985096,1747182642401,-400.0,0.00010958,2]
[360985097,1747182642411,-870.48,0.00010958,2]
[360985098,1747182642420,-400.0,0.00010958,2]
[360985099,1747182642430,-400.0,0.00010958,2]
[360985100,1747182642439,-868.28,0.00010958,2]
[360985101,1747182642449,-400.0,0.00010958,2]
[360985102,1747182642458,-400.0,0.00010958,2]
[360985103,1747182642467,-400.0,0.00010958,2]
[360985104,1747182642476,-808.01,0.00010958,2]
[360985105,1747182642486,-400.0,0.00010958,2]
[360985106,1747182642496,-1558.02,0.00010958,2]
[360985107,1747182642506,-1411.57,0.00010958,2]
[360985108,1747182642516,-636.59,0.00010958,2]
[360985109,1747182642525,-1456.85,0.00010958,2]
[360985110,1747182642535,-1000.0,0.00010958,2]
[360985111,1747182642544,-489.0,0.00010958,2]
[360985112,1747182642553,-3827.74,0.00010958,2]
[360985113,1747182642563,-855.86,0.00010958,2]
[360985114,1747182642572,-400.0,0.00010958,2]
[360985115,1747182642582,-1235.69,0.00010958,2]
[360985116,1747182642591,-1402.34,0.00010958,2]
[360985117,1747182642600,-1780.39,0.00010958,2]
[360985118,1747182642610,-426.75,0.00010958,2]
[360985119,1747182642619,-3585.17,0.00010958,2]
[360985120,1747182642629,-1231.69,0.00010958,2]
[360985121,1747182642639,-400.0,0.00010958,2]
[360985122,1747182642648,-1312.59,0.00010958,2]
[360985123,1747182642657,-460.42935875,0.00010958,2]
[360985124,1747182642666,-400.0,0.00010958,2]
[360985125,1747182642675,-1476.16,0.00010958,2]
[360985126,1747182642685,-400.0,0.00010958,2]
[360985127,1747182642694,-400.0,0.00010958,2]
[360985128,1747182642703,-400.0,0.00010958,2]
[360985129,1747182642712,-1447.95,0.00010958,2]
[360985130,1747182642722,-400.0,0.00010958,2]
[360985131,1747182642731,-400.0,0.00010958,2]
[360985132,1747182642741,-561.24,0.00010958,2]
[360985133,1747182642750,-400.0,0.00010958,2]
[360985134,1747182642760,-1674.42,0.00010958,2]
[360985135,1747182642769,-602.65,0.00010958,2]
[360985136,1747182642778,-1001.67,0.00010958,2]
[360985137,1747182642787,-1707.1,0.00010958,2]
[360985138,1747182642797,-476.12,0.00010958,2]
[360985139,1747182642806,-1074.91,0.00010958,2]
[360985140,1747182642815,-400.0,0.00010958,2]
[360985141,1747182642824,-1110.98,0.00010958,2]
[360985142,1747182642834,-850.75,0.00010958,2]
[360985143,1747182642843,-400.0,0.00010958,2]
[360985144,1747182642852,-400.0,0.00010958,2]
[360985145,1747182642862,-400.0,0.00010958,2]
[360985146,1747182642871,-198.07831834,0.00010958,2]
[360985147,1747182642880,-400.0,0.00010958,2]
[360985148,1747182642889,-400.0,0.00010958,2]
[360985149,1747182642898,-649.39,0.00010958,2]
[360985150,1747182642907,-2318.79,0.00010958,2]
[360985151,1747182642917,-2084.78,0.00010958,2]
[360985152,1747182642926,-948.09,0.00010958,2]
[360985153,1747182642935,-400.0,0.00010958,2]
[360985155,1747182642945,-209.74261201,0.00010958,2]
[360985156,1747182642954,-400.0,0.00010958,2]
[360985157,1747182642964,-615.56,0.00010958,2]
[360985159,1747182642973,-400.0,0.00010958,2]
[360985160,1747182642984,-400.0,0.00010958,2]
[360985161,1747182642994,-583.69,0.00010958,2]
[360985162,1747182643002,-3474.39,0.00010958,2]
[360985164,1747182643010,-1349.58,0.00010958,2]
[360985165,1747182643018,-400.0,0.00010958,2]
[360985166,1747182643027,-400.0,0.00010958,2]
[360985167,1747182643036,-400.0,0.00010958,2]
[360985168,1747182643045,-509.03,0.00010958,2]
[360985169,1747182643054,-1687.92,0.00010958,2]
[360985170,1747182643064,-400.0,0.00010958,2]
[360985172,1747182643073,-24491.01,0.00010958,2]
[360985173,1747182643082,-544.35,0.00010958,2]
[360985174,1747182643091,-400.0,0.00010958,2]
[360985175,1747182643100,-400.0,0.00010958,2]
[360985176,1747182643109,-817.31,0.00010958,2]
[360985177,1747182643118,-400.0,0.00010958,2]
[360985179,1747182643128,-1165.4,0.00010958,2]
[360985181,1747182643137,-1310.77,0.00010958,2]
[360985183,1747182643146,-400.0,0.00010958,2]
[360985185,1747182643155,-400.0,0.00010958,2]
[360985187,1747182643165,-1163.95,0.00010958,2]
[360985189,1747182643174,-400.0,0.00010958,2]
[360985191,1747182643184,-400.0,0.00010958,2]
[360985192,1747182643194,-2705.82,0.00010958,2]
[360985193,1747182643203,-403.9,0.00010958,2]
[360985194,1747182643213,-400.0,0.00010958,2]
[360985195,1747182643222,-1015.26,0.00010958,2]
[360985196,1747182643231,-400.0,0.00010958,2]
[360985197,1747182643240,-499.9,0.00010958,2]
[360985198,1747182643249,-650.89,0.00010958,2]
[360985199,1747182643259,-400.0,0.00010958,2]
[360985200,1747182643268,-1234.96,0.00010958,2]
[360985201,1747182643278,-400.0,0.00010958,2]
[360985202,1747182643287,-400.0,0.00010958,2]
[360985203,1747182643296,-400.0,0.00010958,2]
[360985204,1747182643306,-400.0,0.00010958,2]
[360985205,1747182643315,-374.86474267,0.00010958,2]
[360985206,1747182643324,-400.0,0.00010958,2]
[360985207,1747182643333,-1105.54,0.00010958,2]
[360985208,1747182643343,-400.0,0.00010958,2]
[360985209,1747182643356,-1117.62,0.00010958,2]
[360985210,1747182643366,-412.17,0.00010958,2]
[360985211,1747182643375,-400.0,0.00010958,2]
[360985212,1747182643387,-400.0,0.00010958,2]
[360985213,1747182643396,-400.0,0.00010958,2]
[360985214,1747182643406,-4145.07,0.00010958,2]
[360985215,1747182643416,-525.07,0.00010958,2]
[360985216,1747182643426,-500.0,0.00010958,2]
[360985217,1747182643436,-2334.0,0.00010958,2]
[360985218,1747182643445,-11960.71,0.00010958,2]
[360985219,1747182643454,-400.0,0.00010958,2]
[360985220,1747182643463,-446.48,0.00010958,2]
[360985221,1747182643472,-423.99,0.00010958,2]
[360985222,1747182643482,-1049.28,0.00010958,2]
[360985223,1747182643491,-400.0,0.00010958,2]
[360985224,1747182643500,-400.0,0.00010958,2]
[360985225,1747182643510,-909.52,0.00010958,2]
[360985226,1747182643519,-400.0,0.00010958,2]
[360985227,1747182643529,-1352.85,0.00010958,2]
[360985228,1747182643538,-400.0,0.00010958,2]
[360985229,1747182643547,-400.0,0.00010958,2]
[360985230,1747182643557,-400.0,0.00010958,2]
[360985231,1747182643566,-1224.35,0.00010958,2]
[360985232,1747182643575,-402.78628351,0.00010958,2]
[360985233,1747182643585,-6001.87,0.00010958,2]
[360985234,1747182643594,-1881.36,0.00010958,2]
[360985235,1747182643603,-400.0,0.00010958,2]
[360985236,1747182643612,-400.0,0.00010958,2]
[360985237,1747182643622,-400.0,0.00010958,2]
[360985238,1747182643631,-661.8,0.00010958,2]
[360985239,1747182643641,-400.0,0.00010958,2]
[360985240,1747182643650,-588.23,0.00010958,2]
[360985241,1747182643660,-410.59,0.00010958,2]
[360985242,1747182643670,-7565.7,0.00010958,2]
[360985243,1747182643679,-400.0,0.00010958,2]
[360985244,1747182643689,-946.47,0.00010958,2]
[360985245,1747182643698,-827.22,0.00010958,2]
[360985246,1747182643707,-400.0,0.00010958,2]
[360985247,1747182643717,-400.0,0.00010958,2]
[360985248,1747182643726,-400.0,0.00010958,2]
[360985250,1747182643737,-1969.69,0.00010958,2]
[360985251,1747182643747,-400.0,0.00010958,2]
[360985252,1747182643756,-400.0,0.00010958,2]
[360985253,1747182643766,-400.0,0.00010958,2]
[360985254,1747182643775,-1635.21,0.00010958,2]
[360985255,1747182643785,-449.39,0.00010958,2]
[360985256,1747182643795,-1159.07,0.00010958,2]
[360985257,1747182643804,-400.0,0.00010958,2]
[360985258,1747182643814,-403.14309487,0.00010958,2]
[360985259,1747182643824,-400.0,0.00010958,2]
[360985260,1747182643833,-3606.82,0.00010958,2]
[360985261,1747182643842,-400.0,0.00010958,2]
[360985262,1747182643852,-1793.42,0.00010958,2]
[360985263,1747182643861,-400.0,0.00010958,2]
[360985264,1747182643871,-572.87,0.00010958,2]
[360985265,1747182643882,-1206.78,0.00010958,2]
[360985266,1747182643892,-400.0,0.00010958,2]
[360985267,1747182643901,-400.0,0.00010958,2]
[360985268,1747182643911,-400.0,0.00010958,2]
[360985269,1747182643921,-400.0,0.00010958,2]
[360985270,1747182643930,-2317.32,0.00010958,2]
[360985271,1747182643939,-400.0,0.00010958,2]
[360985272,1747182643949,-400.0,0.00010958,2]
[360985273,1747182644118,-400.0,0.00010958,2]
[360985274,1747182644128,-400.0,0.00010958,2]
[360985275,1747182644139,-400.0,0.00010958,2]
[360985276,1747182644148,-561.6,0.00010958,2]
[360985277,1747182644158,-786.74,0.00010958,2]
[360985278,1747182644167,-522.03634831,0.00010958,2]
[360985279,1747182644176,-911.33,0.00010958,2]
[360985280,1747182644186,-677.21,0.00010958,2]
[360985281,1747182644195,-5793.78,0.00010958,2]
[360985282,1747182644205,-400.0,0.00010958,2]
[360985283,1747182644215,-6011.74,0.00010958,2]
[360985284,1747182644224,-951.16,0.00010958,2]
[360985285,1747182644233,-443.33,0.00010958,2]
[360985286,1747182644242,-400.0,0.00010958,2]
[360985287,1747182644251,-1281.79,0.00010958,2]
[360985288,1747182644260,-394.17468935,0.00010958,2]
[360985289,1747182644269,-400.0,0.00010958,2]
[360985290,1747182644279,-400.0,0.00010958,2]
[360985291,1747182644288,-769.66,0.00010958,2]
[360985292,1747182644297,-700.09,0.00010958,2]
[360985293,1747182644306,-1355.84,0.00010958,2]
[360985294,1747182644315,-400.0,0.00010958,2]
[360985295,1747182644325,-655.31,0.00010958,2]
[360985296,1747182644334,-400.0,0.00010958,2]
[360985297,1747182644343,-419.72,0.00010958,2]
[360985298,1747182644355,-400.0,0.00010958,2]
[360985299,1747182644364,-1907.56,0.00010958,2]
[360985300,1747182644373,-400.0,0.00010958,2]
[360985301,1747182644383,-400.0,0.00010958,2]
[360985302,1747182644393,-400.0,0.00010958,2]
[360985303,1747182644402,-1758.09,0.00010958,2]
[360985304,1747182644412,-400.0,0.00010958,2]
[360985305,1747182644421,-1849.11,0.00010958,2]
[360985306,1747182644433,-793.64,0.00010958,2]
[360985307,1747182644443,-488.14,0.00010958,2]
[360985308,1747182644452,-445.63256898,0.00010958,2]
[360985309,1747182644461,-1645.74,0.00010958,2]
[360985310,1747182644470,-400.0,0.00010958,2]
[360985311,1747182644479,-786.9,0.00010958,2]
[360985312,1747182644488,-400.0,0.00010958,2]
[360985313,1747182644497,-400.0,0.00010958,2]
[360985314,1747182644506,-640.55,0.00010958,2]